bitfinex/quotes_SOLUSD_20240716
["timestamp","ask_amount","ask_price","bid_price","bid_amount"]
[1721136262732,6.3666,157.07,157.01,62.19548696]
[1721136262912,1.27173737,157.06,157.02,7.64197607]
[1721136263238,6.3665,157.08,157.03,6.3681]
[1721136263532,6.3665,157.08,157.04,1.27342142]
[1721136263938,6.3667,157.07,157.04,1.27342142]
[1721136264122,6.3662,157.08,157.04,1.27342142]
[1721136264516,47.7319,157.13,157.05,7.6406806]
[1721136264517,1.27173737,157.1,157.05,7.6406806]
[1721136264718,6.366,157.09,157.04,6.3677]
[1721136264926,6.3662,157.08,157.05,45.0]
[1721136265331,6.3659,157.09,157.05,45.0]
[1721136265641,6.3661,157.08,157.05,45.0]
[1721136265837,1.27173737,157.12,157.05,51.3669]
[1721136266030,6.3654,157.1,157.05,51.3669]
[1721136266236,6.3654,157.1,157.06,6.3669]
[1721136266446,1.27173737,157.12,157.07,1.27317034]
[1721136266629,1.27173737,157.12,157.05,82.9052]
[1721136266955,6.3654,157.1,157.06,6.3668]
[1721136267132,6.3649,157.11,157.07,46.27307729]
[1721136267326,1.27173737,157.12,157.07,46.27307729]
[1721136267327,6.3654,157.1,157.07,46.27307729]
[1721136267525,6.3654,157.1,157.07,1.27307729]
[1721136268037,6.3658,157.09,157.06,46.27308286]
[1721136268240,6.3654,157.1,157.06,46.27310688]
[1721136268446,6.3654,157.1,157.06,52.64000688]
[1721136268748,6.3654,157.1,157.06,46.27310688]
[1721136269137,6.3654,157.1,157.06,52.63990688]
[1721136269317,6.365,157.11,157.07,6.3665]
[1721136269649,7.63633737,157.12,157.08,1.27306369]
[1721136270320,6.365,157.11,157.08,1.27306369]
[1721136271329,6.3644,157.13,157.08,52.63906369]
[1721136271530,6.3647,157.12,157.08,60.62]
[1721136271829,1.27173737,157.14,157.08,66.9861]
[1721136271830,6.3642,157.13,157.08,66.9861]
[1721136272225,6.3646,157.12,157.08,66.9861]
[1721136272434,6.3645,157.12,157.08,60.62]
[1721136273040,6.365,157.11,157.07,15.9158]
[1721136273229,1.27173737,157.16,157.02,22.535]
[1721136273230,6.3667,157.07,157.02,22.535]
[1721136273426,6.3667,157.07,157.03,16.89241718]
[1721136273849,1.27173737,157.1,157.03,1.27241718]
[1721136274053,1.27173737,157.1,157.01,28.1469]
[1721136274240,6.3671,157.06,157.02,1.27342782]
[1721136274733,6.3671,157.06,157.01,28.1469]
[1721136274929,6.3671,157.06,157.02,1.2734181]
[1721136275254,6.3671,157.06,157.02,7.6418181]
[1721136275447,6.3666,157.07,157.03,6.368]
[1721136275753,6.3662,157.08,157.04,7.64090865]
[1721136276051,6.3658,157.09,157.04,23.26090865]
[1721136276258,1.27173737,157.1,157.05,1.27332796]
[1721136276448,1.27173737,157.11,157.05,1.27332796]
[1721136276653,6.3659,157.09,157.04,22.2865]
[1721136276850,1.27173737,157.1,157.05,45.0]
[1721136277023,6.3673,157.06,157.02,6.3685]
[1721136277227,17.18563737,157.1,157.02,6.3685]
[1721136277451,6.367,157.06,157.01,28.4487]
[1721136277630,6.367,157.06,157.02,45.0]
[1721136278231,6.367,157.06,157.02,51.3685]
[1721136278755,6.366,157.09,157.05,6.3672]
[1721136278946,1.27173737,157.08,157.05,6.3672]
[1721136279148,7.63793737,157.08,157.04,6.3676]
[1721136279328,15.6716,157.12,157.05,6.367]
[1721136279329,1.27173737,157.11,157.05,6.367]
[1721136279646,1.27173737,157.1,157.06,0.69249813]
[1721136279846,1.27173737,157.1,157.05,6.367]
[1721136280046,6.366,157.09,157.05,6.367]
[1721136280245,6.3668,157.07,157.03,22.2879]
[1721136280446,6.3668,157.07,157.03,15.92]
[1721136281053,6.3668,157.07,157.03,22.2882]
[1721136281254,7.63883737,157.06,157.02,51.3684]
[1721136281434,6.3674,157.05,157.02,45.0]
[1721136281637,6.3674,157.05,157.01,6.3688]
[1721136282032,6.3671,157.06,157.01,6.3688]
[1721136282753,6.3666,157.07,157.0,15.9229]
[1721136282938,6.3663,157.08,157.04,6.3677]
[1721136283142,1.27173737,157.07,157.04,6.3677]
[1721136283459,1.27173737,157.07,157.04,15.9192]
[1721136283635,1.27173737,157.1,157.04,22.2866]
[1721136283843,6.3664,157.08,157.04,22.2866]
[1721136284058,1.27173737,157.07,157.01,15.922]
[1721136284255,11.27173737,157.11,157.01,15.922]
[1721136284452,6.367,157.06,157.02,6.3683]
[1721136284839,1.27173737,157.1,157.04,6.3676]
[1721136284840,6.3661,157.09,157.04,6.3676]
[1721136285043,7.63813737,157.08,157.04,6.3676]
[1721136285247,1.27173737,157.07,157.02,6.3683]
[1721136286052,6.3672,157.06,157.02,6.3683]
[1721136286259,6.3674,157.05,157.01,6.3688]
[1721136288635,6.3671,157.06,157.01,6.3688]
[1721136288840,6.3667,157.07,157.02,15.9212]
[1721136289059,1.27173737,157.09,157.01,31.8449]
[1721136289361,6.3653,157.1,157.06,6.3668]
[1721136289737,1.27173737,157.11,157.07,1.27325065]
[1721136289935,7.63683737,157.11,157.07,6.3664]
[1721136290149,7.63703737,157.1,157.06,6.3669]
[1721136290355,7.63703737,157.1,157.05,22.285]
[1721136290669,6.3658,157.09,157.05,22.285]
[1721136291566,6.3658,157.09,157.05,15.9178]
[1721136291741,6.3662,157.08,157.03,6.3681]
[1721136291940,7.63833737,157.07,157.03,6.3681]
[1721136292160,31.5833,157.12,157.02,60.921]
[1721136292161,6.3672,157.06,157.02,60.921]
[1721136292550,6.3672,157.06,157.02,67.2896]
[1721136292743,1.27173737,157.05,157.02,22.2896]
[1721136293070,1.27173737,157.05,156.99,15.9243]
[1721136293362,6.3675,157.05,157.0,6.369]
[1721136293566,1.27173737,157.08,156.96,31.19]
[1721136293766,1.27173737,157.07,157.03,6.3681]
[1721136294083,1.27173737,157.07,157.03,15.92]
[1721136294366,6.367,157.06,157.03,15.92]
[1721136294955,7.63843737,157.07,157.03,15.92]
[1721136295158,6.3667,157.07,157.03,23.56159596]
[1721136295350,6.3667,157.07,157.03,22.2881]
[1721136295553,1.27173737,157.08,157.01,6.3687]
[1721136295554,6.3673,157.06,157.01,6.3687]
[1721136295763,6.3673,157.06,157.02,51.3685]
[1721136295964,6.3667,157.07,157.03,1.07564028]
[1721136296166,6.3667,157.07,157.02,45.0]
[1721136296379,6.3667,157.07,157.01,45.0]
[1721136296672,1.27173737,157.06,157.01,45.0]
[1721136297170,7.63873737,157.06,157.01,45.0]
[1721136297390,6.367,157.06,157.01,45.0]
[1721136298046,6.367,157.06,157.02,6.3683]
[1721136298268,6.3667,157.07,157.02,21.9683]
[1721136298972,1.27173737,157.06,157.02,21.9683]
[1721136299174,6.3669,157.06,157.02,21.9683]
[1721136299774,1.27173737,157.07,157.01,66.9689]
[1721136299775,6.3674,157.05,157.01,66.9689]
[1721136299956,6.3679,157.04,157.01,15.6]
[1721136300160,1.27173737,157.03,156.97,15.9259]
[1721136300370,1.27173737,157.03,156.99,6.3695]
[1721136300371,6.3682,157.03,156.99,6.3695]
[1721136300586,7.64063737,157.02,156.98,6.37]
[1721136300789,6.3681,157.04,156.99,21.9696]
[1721136300947,7.63993737,157.03,156.99,21.9696]
[1721136301467,1.27173737,157.02,156.99,6.3696]
[1721136301680,7.64043737,157.02,156.98,37.8952]
[1721136301852,6.3687,157.02,156.98,37.8952]
[1721136302366,7.63963737,157.04,157.0,6.3694]
[1721136302577,7.63963737,157.04,157.0,21.9694]
[1721136302761,1.27173737,157.08,157.01,6.3688]
[1721136302963,7.63853737,157.07,157.03,21.9678]
[1721136303279,7.63793737,157.08,157.04,6.3677]
[1721136303580,1.27173737,157.07,157.03,37.8885]
[1721136303808,6.3659,157.09,157.05,21.9672]
[1721136304385,6.3659,157.09,157.05,15.6]
[1721136304386,6.5537,157.08,157.05,15.6]
[1721136304586,10.0,156.95,156.81,23.2621]
[1721136304787,1.59366923,156.94,156.82,0.36387779]
[1721136305113,1.59366923,156.94,156.85,15.6]
[1721136305403,6.3738,156.89,156.86,15.6]
[1721136305609,6.3738,156.89,156.85,15.6]
[1721136305907,6.3738,156.89,156.81,23.2621]
[1721136305908,6.3738,156.89,156.84,15.6]
[1721136306095,6.3734,156.91,156.86,15.6]
[1721136306283,7.96696191,156.9,156.85,15.9378]
[1721136306487,1.5935896,156.89,156.85,15.9378]
[1721136306691,1.5935944,156.94,156.85,15.9378]
[1721136307078,6.3738,156.9,156.85,22.3132]
[1721136307286,7.96749676,156.89,156.85,15.9378]
[1721136307485,6.3739,156.89,156.85,15.9378]
[1721136307917,1.59358416,156.88,156.85,15.9378]
[1721136308487,7.96798416,156.88,156.83,6.3763]
[1721136308687,1.59379792,156.87,156.83,6.3763]
[1721136308887,6.3744,156.88,156.83,6.3763]
[1721136309295,6.374,156.89,156.84,6.3757]
[1721136309497,1.59370339,156.88,156.84,6.3757]
[1721136310113,7.96810339,156.88,156.83,6.3763]
[1721136310319,1.59370339,156.88,156.82,15.9415]
[1721136310489,15.9339,156.9,156.81,29.6389]
[1721136310697,1.59395729,156.89,156.79,16.7864054]
[1721136310891,6.3758,156.85,156.8,6.3774]
[1721136311201,1.59410566,156.84,156.8,6.3774]
[1721136312220,6.3751,156.86,156.79,16.7864054]
[1721136312410,1.59407823,156.85,156.8,45.0]
[1721136312612,1.59408077,156.89,156.83,6.3763]
[1721136312911,6.3755,156.85,156.81,22.3191]
[1721136313329,6.3751,156.86,156.82,6.3765]
[1721136314719,1.59408077,156.89,156.84,22.3156]
[1721136315018,6.3748,156.87,156.81,15.9424]
[1721136315314,6.3743,156.88,156.84,6.3758]
[1721136315905,15.9307,156.93,156.79,0.8419054]
[1721136315906,6.3774,156.81,156.79,0.8419054]
[1721136316116,6.376,156.84,156.79,0.8419054]
[1721136316296,6.3758,156.85,156.8,6.3771]
[1721136316491,6.3752,156.86,156.79,16.7862054]
[1721136316800,6.3752,156.86,156.81,6.377]
[1721136316994,6.3752,156.86,156.82,6.3766]
[1721136317207,6.3752,156.86,156.81,6.377]
[1721136317402,6.3761,156.84,156.8,45.0]
[1721136317789,6.3761,156.84,156.79,23.1638054]
[1721136317790,1.59411947,156.83,156.79,23.1638054]
[1721136318009,6.3761,156.84,156.8,6.3773]
[1721136318930,6.3765,156.83,156.79,16.7862054]
[1721136319213,6.3765,156.83,156.8,45.0]
[1721136319520,6.3769,156.82,156.79,0.8419054]
[1721136319700,6.3764,156.83,156.79,7.2197054]
[1721136319910,6.376,156.84,156.79,7.2197054]
[1721136320230,1.59416669,156.86,156.8,6.3774]
[1721136320417,1.59416669,156.86,156.8,1.27529802]
[1721136320723,6.3748,156.87,156.82,15.9414]
[1721136321016,1.59394656,156.87,156.83,6.376]
[1721136321417,1.59394656,156.87,156.82,22.3181]
[1721136321418,7.96874656,156.87,156.82,22.3181]
[1721136321598,6.3752,156.86,156.83,0.17]
[1721136322019,6.3763,156.83,156.79,16.7867054]
[1721136322217,7.97133889,156.82,156.79,0.8419054]
[1721136322446,6.377,156.82,156.79,0.8419054]
[1721136323326,6.3767,156.82,156.79,0.8419054]
[1721136324806,6.3775,156.8,156.79,0.8419054]
[1721136325125,6.3772,156.81,156.79,0.8419054]
[1721136325294,1.59448725,156.8,156.79,0.8419054]
[1721136326424,6.3771,156.82,156.79,0.8419054]
[1721136326597,1.59445157,156.83,156.79,0.8419054]
[1721136326798,1.59445157,156.83,156.79,16.7864054]
[1721136326799,6.3764,156.83,156.79,16.7864054]
[1721136327022,7.97112184,156.82,156.79,0.8419054]
[1721136327205,6.3767,156.82,156.79,0.8419054]
[1721136327606,6.3764,156.83,156.79,0.8419054]
[1721136327829,1.59441645,156.82,156.79,7.2197054]
[1721136328532,7.9701016,156.85,156.8,15.9435]
[1721136328740,7.9701016,156.85,156.8,22.3209]
[1721136328741,6.3759,156.84,156.8,22.3209]
[1721136328919,1.59422394,156.83,156.8,22.3209]
[1721136329505,1.59422995,156.86,156.8,15.9435]
[1721136329818,1.59411224,156.89,156.85,6.3751]
[1721136330138,1.59411224,156.89,156.86,6.3749]
[1721136330332,1.59363245,156.9,156.88,6.3742]
[1721136330530,1.59363245,156.9,156.85,0.17]
[1721136330531,1.59363245,156.9,156.87,15.9361]
[1721136330824,1.59363245,156.9,156.87,22.3106]
[1721136331028,7.96713245,156.9,156.85,0.17]
[1721136331211,1.59359457,156.89,156.86,0.17]
[1721136332432,15.9363,156.88,156.78,15.3146]
[1721136332606,1.59401959,156.87,156.78,15.3146]
[1721136332808,6.3748,156.87,156.81,15.9421]
[1721136333005,1.5939724,156.86,156.82,6.3764]
[1721136333211,1.5939724,156.86,156.8,6.3775]
[1721136333411,1.59416124,156.88,156.8,6.3775]
[1721136333637,6.3756,156.85,156.81,6.3771]
[1721136333860,15.9352,156.89,156.82,6.3767]
[1721136333861,1.59414699,156.84,156.82,6.3767]
[1721136334036,7.96864489,156.88,156.83,6.3763]
[1721136334525,6.3748,156.87,156.82,22.3177]
[1721136334729,6.3756,156.85,156.79,16.7863054]
[1721136334967,6.375,156.87,156.8,0.17]
[1721136335153,1.59403079,156.86,156.82,6.3766]
[1721136335342,1.59403079,156.86,156.81,15.9423]
[1721136335343,6.3743,156.88,156.84,6.3757]
[1721136335532,25.9311,156.93,156.84,6.3757]
[1721136335835,1.76390895,156.92,156.83,22.4865]
[1721136337053,1.76390895,156.92,156.85,15.9381]
[1721136337271,6.3739,156.89,156.85,15.9381]
[1721136337558,1.593872,156.88,156.85,15.9381]
[1721136338058,6.3735,156.9,156.85,22.3133]
[1721136338261,22.51639899,156.94,156.85,22.3133]
[1721136338262,7.96760426,156.89,156.85,22.3133]
[1721136338550,6.3739,156.89,156.85,22.3133]
[1721136338745,1.59370208,156.88,156.85,15.9381]
[1721136338947,7.96810208,156.88,156.84,6.3757]
[1721136339136,6.374,156.89,156.84,6.3757]
[1721136339340,1.59373037,156.88,156.84,6.3758]
[1721136340355,6.3733,156.91,156.85,16.1085]
[1721136340654,6.3743,156.88,156.84,6.3755]
[1721136341383,1.59359664,156.9,156.85,6.3754]
[1721136341671,1.59359664,156.9,156.84,15.9393]
[1721136341672,6.3741,156.89,156.84,22.315]
[1721136341879,6.3741,156.89,156.85,0.17]
[1721136342175,6.3735,156.9,156.85,6.5454]
[1721136342589,6.3735,156.9,156.85,7.82028407]
[1721136342766,1.5936072,156.89,156.86,6.375]
[1721136343076,6.3762,156.84,156.8,45.0]
[1721136343384,6.3751,156.86,156.81,0.34]
[1721136343565,6.3751,156.86,156.81,45.34]
[1721136343865,6.3751,156.86,156.82,6.3764]
[1721136344075,6.3756,156.85,156.81,45.17]
[1721136344373,10.0,156.91,156.82,15.9413]
[1721136344572,1.59399681,156.9,156.82,15.9413]
[1721136344741,1.59399681,156.89,156.82,15.9413]
[1721136344943,6.3752,156.86,156.82,15.9413]
[1721136345169,6.3752,156.86,156.82,22.3179]
[1721136345446,6.3752,156.86,156.82,23.59305594]
[1721136345980,6.3752,156.86,156.82,22.3179]
[1721136346760,1.5939962,156.89,156.83,6.3762]
[1721136347058,47.966,156.92,156.83,6.3762]
[1721136347259,1.59387906,156.91,156.83,6.3762]
[1721136347952,6.3751,156.86,156.82,22.3178]
[1721136349973,1.59387906,156.91,156.84,15.9392]
[1721136350179,1.59387906,156.91,156.84,22.3149]
[1721136350180,6.3744,156.88,156.84,22.3149]
[1721136350971,7.96849609,156.87,156.84,15.9392]
[1721136351175,6.3747,156.87,156.84,15.9392]
[1721136352265,6.3739,156.89,156.85,6.3752]
[1721136352575,6.3744,156.88,156.85,0.17]
[1721136352782,6.374,156.89,156.85,0.17]
[1721136352963,6.374,156.89,156.85,6.5454]
[1721136353352,6.3743,156.88,156.85,0.17]
[1721136353659,1.5936468,156.87,156.82,6.3763]
[1721136353877,6.3748,156.87,156.83,6.3761]
[1721136354080,6.3744,156.88,156.84,6.3758]
[1721136354283,6.374,156.89,156.84,6.3758]
[1721136354459,1.59379755,156.88,156.84,6.3758]
[1721136354780,7.96809755,156.88,156.84,6.3758]
[1721136354987,6.3743,156.88,156.84,6.3758]
[1721136355965,7.9684384,156.87,156.83,22.4867]
[1721136356287,6.3747,156.87,156.83,22.4867]
[1721136356473,6.3744,156.88,156.84,6.3757]
[1721136356673,6.3744,156.88,156.84,7.65074413]
[1721136356881,7.9684337,156.87,156.83,22.4867]
[1721136357080,6.3747,156.87,156.83,22.4867]
[1721136357272,6.3744,156.88,156.84,6.3759]
[1721136357478,6.3744,156.88,156.84,7.65091064]
[1721136358185,1.59375667,156.87,156.84,6.3759]
[1721136358383,1.59375667,156.87,156.83,22.4866]
[1721136358972,6.3744,156.88,156.83,22.4866]
[1721136359782,6.3744,156.88,156.84,6.3758]
[1721136360390,7.96856222,156.87,156.83,38.1265]
[1721136360568,6.3748,156.87,156.83,38.1265]
[1721136360761,6.3751,156.86,156.83,16.1105]
[1721136361087,1.59376427,156.89,156.83,16.1105]
[1721136361270,1.59376427,156.89,156.8,15.9433]
[1721136361588,15.64,156.85,156.8,15.9433]
[1721136361897,7.96998813,156.84,156.8,22.3205]
[1721136362084,6.3764,156.83,156.8,31.5833]
[1721136362401,6.3764,156.83,156.8,15.9433]
[1721136362570,7.9705869,156.83,156.8,15.9433]
[1721136362992,7.97097493,156.82,156.79,0.8419054]
[1721136363183,1.59439417,156.81,156.79,0.8419054]
[1721136363692,1.59440271,156.81,156.79,0.8419054]
[1721136364068,22.0167,156.82,156.79,0.8419054]
[1721136364404,1.59439977,156.81,156.79,0.8419054]
[1721136364996,7.97000147,156.85,156.8,16.91552118]
[1721136365695,6.3752,156.86,156.82,6.3765]
[1721136366074,7.96894329,156.87,156.83,6.3762]
[1721136366278,6.3741,156.89,156.85,6.3755]
[1721136366477,1.59377273,156.88,156.85,6.3755]
[1721136366780,7.96817273,156.88,156.84,6.3758]
[1721136367102,7.96848182,156.87,156.83,37.9565]
[1721136367402,7.96848182,156.87,156.83,15.9402]
[1721136367585,6.3747,156.87,156.83,15.9402]
[1721136367789,1.59378161,156.9,156.81,60.223]
[1721136367790,1.59378161,156.86,156.81,66.6]
[1721136367992,7.96961547,156.85,156.81,6.377]
[1721136368175,6.3755,156.85,156.81,6.377]
[1721136368371,6.3752,156.86,156.81,1.27525116]
[1721136368596,6.3746,156.88,156.82,17.21668473]
[1721136368800,6.3746,156.88,156.83,0.79137505]
[1721136368976,7.96851955,156.87,156.82,15.9415]
[1721136369301,6.3747,156.87,156.83,0.17]
[1721136369601,6.3743,156.88,156.83,0.17]
[1721136369905,7.96861962,156.87,156.83,0.17]
[1721136370090,7.96922223,156.86,156.82,15.9415]
[1721136370298,1.59402349,156.85,156.82,15.9415]
[1721136370500,6.3754,156.86,156.82,22.3181]
[1721136371006,6.3746,156.88,156.83,6.3761]
[1721136371180,1.59393628,156.87,156.83,6.3761]
[1721136371376,1.59393628,156.87,156.82,15.9415]
[1721136371377,6.3746,156.88,156.82,15.9415]
[1721136371579,7.96864664,156.87,156.83,6.3762]
[1721136371799,6.3744,156.88,156.84,6.3759]
[1721136372080,1.59383578,156.9,156.86,6.3748]
[1721136372395,7.96750581,156.89,156.85,6.3752]
[1721136372587,6.3744,156.88,156.84,22.3152]
[1721136372790,1.59378918,156.87,156.84,22.3152]
[1721136373583,7.96848918,156.87,156.84,15.9395]
[1721136373782,6.3744,156.88,156.84,22.3154]
[1721136374002,1.59378923,156.91,156.84,22.3154]
[1721136374003,6.374,156.89,156.85,6.3755]
[1721136374191,1.59373404,156.88,156.85,6.3755]
[1721136374585,1.59373404,156.88,156.84,15.9395]
[1721136374903,1.59383124,156.91,156.84,15.9395]
[1721136375292,6.3744,156.88,156.84,22.3151]
[1721136375680,6.374,156.89,156.84,22.3151]
[1721136375875,1.59372772,156.88,156.84,22.3151]
[1721136376306,1.59372772,156.88,156.85,6.3754]
[1721136376994,7.96802772,156.88,156.84,22.3152]
[1721136377203,6.3743,156.88,156.85,0.17]
[1721136377501,7.96840522,156.87,156.84,15.9395]
[1721136377674,6.3743,156.88,156.84,22.3152]
[1721136379413,6.3738,156.9,156.85,0.17]
[1721136379607,1.59375827,156.91,156.86,15.937]
[1721136379811,1.59375827,156.91,156.88,6.374]
[1721136380900,1.59339934,156.94,156.86,31.8753]
[1721136381216,7.96529934,156.94,156.9,6.3731]
[1721136381397,7.96529934,156.94,156.9,15.9334]
[1721136381398,1.59328776,156.93,156.9,15.9334]
[1721136381596,1.59328776,156.93,156.9,22.3067]
[1721136381813,1.59316966,156.97,156.9,22.3067]
[1721136382023,6.3716,156.95,156.9,15.9334]
[1721136382224,6.3716,156.95,156.9,22.3066]
[1721136382225,1.59311969,156.94,156.9,22.3066]
[1721136382819,1.59311969,156.94,156.92,6.3725]
[1721136383025,7.96417684,156.96,156.92,6.3725]
[1721136383214,1.59307685,156.95,156.92,15.9311]
[1721136383519,1.59307812,156.98,156.92,15.9311]
[1721136384415,1.59307812,156.98,156.89,0.17]
[1721136384416,6.3717,156.95,156.91,6.3729]
[1721136384596,1.593078,156.94,156.91,6.3729]
[1721136386133,1.59307673,156.95,156.91,6.3729]
[1721136386644,7.96447673,156.95,156.9,6.3733]
[1721136386797,1.5931996,156.94,156.9,6.3733]
[1721136387426,1.5931996,156.94,156.89,0.17]
[1721136387617,7.9652996,156.94,156.9,6.3734]
[1721136387820,7.9652996,156.94,156.89,6.3736]
[1721136387821,1.59327929,156.93,156.89,6.3736]
[1721136388218,15.63,156.92,156.89,6.3736]
[1721136388528,15.63,156.9,156.88,22.3092]
[1721136388824,6.3729,156.92,156.88,22.3092]
[1721136389333,6.3729,156.92,156.85,31.1118]
[1721136389334,15.63,156.93,156.91,6.3729]
[1721136389506,1.59328208,156.92,156.9,15.9329]
[1721136389711,1.59336047,156.95,156.9,15.9329]
[1721136390037,6.3722,156.93,156.89,6.3738]
[1721136390222,1.59340688,156.92,156.9,6.3734]
[1721136390401,1.59340688,156.92,156.89,6.3737]
[1721136390906,6.373,156.91,156.87,22.3106]
[1721136391114,1.59361033,156.9,156.87,15.9362]
[1721136391330,1.59360378,156.89,156.85,6.3754]
[1721136392531,1.59360378,156.89,156.86,6.375]
[1721136392828,1.59360378,156.89,156.84,15.9391]
[1721136393025,6.374,156.89,156.84,15.9391]
[1721136393227,1.59375332,156.88,156.84,15.9391]
[1721136393733,1.59375332,156.88,156.85,6.3754]
[1721136394146,1.59375332,156.88,156.84,15.9391]
[1721136394436,1.59375332,156.88,156.81,15.008]
[1721136394437,1.59396396,156.87,156.81,30.9506]
[1721136395044,1.59404713,156.9,156.84,15.9397]
[1721136395214,1.5938318,156.89,156.85,6.3751]
[1721136396034,6.3738,156.9,156.86,6.3749]
[1721136396035,1.59380017,156.9,156.86,6.3749]
[1721136396242,1.59380017,156.89,156.86,6.3749]
[1721136396621,7.96717719,156.9,156.86,6.3749]
[1721136396933,1.59359188,156.89,156.86,6.3749]
[1721136397132,7.96717804,156.9,156.86,6.3749]
[1721136397332,1.59361255,156.89,156.86,6.3749]
[1721136397541,7.96717648,156.9,156.85,7.65044013]
[1721136397726,6.3735,156.9,156.86,1.2748826]
[1721136398338,1.59354066,156.89,156.85,6.3754]
[1721136398548,1.59362438,156.93,156.84,22.4855]
[1721136398725,15.9301,156.94,156.84,22.4855]
[1721136398726,1.59370006,156.92,156.84,22.4855]
[1721136399129,6.3738,156.9,156.85,7.65024227]
[1721136399332,1.59366785,156.89,156.85,7.65024227]
[1721136399951,7.96756785,156.89,156.85,7.65024227]
[1721136400139,6.3739,156.89,156.85,7.65024227]
[1721136400342,6.3739,156.89,156.85,1.27494227]
[1721136400647,6.3739,156.89,156.84,22.4855]
[1721136401250,6.3735,156.9,156.85,51.3751]
[1721136401453,6.3735,156.9,156.85,51.5451]
[1721136402030,6.3735,156.9,156.86,6.375]
[1721136402233,1.5936695,156.93,156.88,15.9357]
[1721136402549,6.3727,156.92,156.88,15.9357]
[1721136402960,7.96650133,156.91,156.88,15.9357]
[1721136403136,6.3731,156.91,156.88,15.9357]
[1721136403829,6.3731,156.91,156.86,6.3749]
[1721136404040,6.3731,156.91,156.87,0.17]
[1721136404232,6.3731,156.91,156.86,6.3749]
[1721136404442,6.3731,156.91,156.87,6.3746]
[1721136404957,6.3728,156.92,156.88,6.3742]
[1721136405455,7.96643747,156.91,156.87,0.17]
[1721136405650,6.3732,156.91,156.87,0.17]
[1721136405838,6.3732,156.91,156.86,6.3747]
[1721136406034,6.3727,156.92,156.87,6.3746]
[1721136406357,6.3727,156.92,156.88,6.544]
[1721136406656,1.59336687,156.91,156.88,6.374]
[1721136407556,1.59337563,156.95,156.9,6.3734]
[1721136407747,1.59337563,156.95,156.89,22.308]
[1721136408347,6.3723,156.93,156.89,22.308]
[1721136408563,6.3719,156.94,156.89,22.308]
[1721136408733,1.59323221,156.93,156.9,6.3733]
[1721136409976,1.59323221,156.93,156.88,0.17]
[1721136410179,6.3715,156.95,156.91,15.9323]
[1721136410383,7.96492425,156.94,156.91,15.9323]
[1721136410579,1.59312425,156.93,156.91,15.9323]
[1721136410874,22.2869,156.97,156.88,16.3104]
[1721136410875,1.59312425,156.96,156.88,16.3104]
[1721136411053,6.3721,156.94,156.9,15.9331]
[1721136411255,7.96456306,156.95,156.9,22.3065]
[1721136411458,7.96456306,156.95,156.91,6.373]
[1721136412169,1.59306212,156.94,156.91,6.373]
[1721136412374,17.22306212,156.94,156.91,6.373]
[1721136412683,17.22306212,156.94,156.9,22.3064]
[1721136413147,23.59496212,156.94,156.9,22.3064]
[1721136413348,1.59318935,156.93,156.9,22.3064]
[1721136413877,1.59318935,156.93,156.9,15.9331]
[1721136414475,7.96426289,156.96,156.92,15.931]
[1721136414776,1.59307579,156.95,156.92,15.931]
[1721136414953,7.96457579,156.95,156.91,6.3729]
[1721136415672,1.59312214,156.94,156.91,6.3729]
[1721136416270,7.96502214,156.94,156.89,15.9341]
[1721136416490,7.96502214,156.94,156.9,6.3732]
[1721136416797,6.3715,156.95,156.9,6.3732]
[1721136416992,1.59318776,156.94,156.9,6.3732]
[1721136417693,1.59318776,156.94,156.92,6.3726]
[1721136417899,22.2869,156.97,156.89,15.9341]
[1721136417900,7.96469561,156.95,156.89,15.9341]
[1721136418197,7.96469561,156.95,156.88,16.1404]
[1721136418198,1.59309561,156.95,156.92,15.931]
[1721136418995,7.96449561,156.95,156.92,15.931]
[1721136419482,1.59312476,156.94,156.92,15.931]